bitfinex-derivatives/quotes_BTCF0:USTF0_20250901
["timestamp","ask_amount","ask_price","bid_price","bid_amount"]
[1756706368034,1.48070909,107930.0,107920.0,0.34859871]
[1756706369234,1.48070909,107930.0,107920.0,0.07304962]
[1756706369434,1.48070909,107930.0,107920.0,0.34859871]
[1756706370138,1.50070909,107930.0,107920.0,0.34859871]
[1756706374233,1.50070909,107930.0,107920.0,0.07304962]
[1756706374435,1.50070909,107930.0,107920.0,0.34859871]
[1756706374934,1.13990909,107930.0,107920.0,0.34859871]
[1756706375136,1.50070909,107930.0,107920.0,0.34859871]
[1756706377741,1.22516,107930.0,107920.0,0.34859871]
[1756706377934,0.65634909,107930.0,107920.0,0.34859871]
[1756706378135,1.50062909,107930.0,107920.0,0.34859871]
[1756706380236,1.50062909,107930.0,107920.0,0.07304962]
[1756706380442,1.50062909,107930.0,107920.0,0.34859871]
[1756706380942,1.74062909,107930.0,107920.0,0.34859871]
[1756706381142,1.50062909,107930.0,107920.0,0.34859871]
[1756706381845,1.22508,107930.0,107920.0,0.34859871]
[1756706382143,1.50062909,107930.0,107920.0,0.34859871]
[1756706382541,1.50062909,107930.0,107920.0,0.07304962]
[1756706382742,1.80058909,107930.0,107920.0,0.07304962]
[1756706383242,1.80058909,107930.0,107920.0,0.34859871]
[1756706385143,0.65634909,107930.0,107920.0,0.34859871]
[1756706385342,1.50058909,107930.0,107920.0,0.34859871]
[1756706386239,1.48058909,107930.0,107920.0,0.34859871]
[1756706386744,1.75058909,107930.0,107920.0,0.07304962]
[1756706386945,1.85058909,107930.0,107920.0,0.007]
[1756706387545,1.85054909,107930.0,107920.0,0.007]
[1756706392951,1.00634909,107930.0,107920.0,0.007]
[1756706393148,1.85050909,107930.0,107920.0,0.007]
[1756706395552,1.85050909,107930.0,107920.0,0.07304962]
[1756706397146,1.85050909,107930.0,107920.0,0.007]
[1756706398946,1.00634909,107930.0,107920.0,0.007]
[1756706399147,1.00634909,107930.0,107920.0,0.07304962]
[1756706399148,1.48046909,107930.0,107920.0,0.07304962]
[1756706399549,1.48046909,107930.0,107920.0,0.34859871]
[1756706400240,0.63634909,107930.0,107920.0,0.34859871]
[1756706400444,1.48046909,107930.0,107920.0,0.34859871]
[1756706400748,1.73046909,107930.0,107920.0,0.07304962]
[1756706401147,1.48046909,107930.0,107920.0,0.07304962]
[1756706401350,0.3608,107930.0,107920.0,0.07304962]
[1756706401552,1.20488,107930.0,107920.0,0.34859871]
[1756706401954,1.48042909,107930.0,107920.0,0.34859871]
[1756706402651,1.48042909,107930.0,107920.0,0.07304962]
[1756706403059,1.82042909,107930.0,107920.0,0.07304962]
[1756706403551,1.83042909,107930.0,107920.0,0.07304962]
[1756706404748,2.35597818,107930.0,107920.0,0.007]
[1756706405056,2.37700293,107930.0,107920.0,0.007]
[1756706405952,2.37700293,107930.0,107920.0,0.003]
[1756706406155,2.37700293,107930.0,107900.0,0.06604962]
[1756706406345,0.63634909,107910.0,107900.0,0.06604962]
[1756706406542,1.48042909,107910.0,107900.0,0.06604962]
[1756706407554,1.48042909,107910.0,107900.0,0.34159871]
[1756706407758,1.48042909,107910.0,107890.0,0.50092562]
[1756706407949,0.27554909,107900.0,107890.0,1.10647471]
[1756706408153,1.20488,107910.0,107890.0,0.83092562]
[1756706408355,0.27554909,107900.0,107890.0,1.10647471]
[1756706408550,0.91189818,107900.0,107890.0,0.47012562]
[1756706408753,1.25189818,107900.0,107890.0,0.14012562]
[1756706409055,1.25189818,107900.0,107890.0,0.08353352]
[1756706409250,1.25189818,107900.0,107880.0,0.06604962]
[1756706409451,1.48042909,107890.0,107880.0,0.06604962]
[1756706409648,1.48042909,107890.0,107880.0,0.34159871]
[1756706409846,1.48042909,107890.0,107880.0,0.06604962]
[1756706410248,1.48042909,107890.0,107870.0,0.42463813]
[1756706410453,0.27554909,107880.0,107870.0,0.4499534]
[1756706410755,0.27554909,107880.0,107870.0,1.09093249]
[1756706411149,0.27554909,107880.0,107870.0,0.8153834]
[1756706411353,0.63634909,107880.0,107870.0,0.32853378]
[1756706411552,0.63634909,107880.0,107870.0,0.61320039]
[1756706412254,1.29189818,107880.0,107870.0,0.0876513]
[1756706412461,0.91189818,107880.0,107870.0,0.0936513]
[1756706412654,1.48130909,107880.0,107870.0,0.0936513]
[1756706413360,1.48130909,107880.0,107870.0,0.1016513]
[1756706413562,1.48126909,107880.0,107870.0,0.1016513]
[1756706413755,0.63634909,107880.0,107870.0,0.1016513]
[1756706413957,1.48152499,107880.0,107870.0,0.1016513]
[1756706414152,0.3608,107880.0,107870.0,0.1016513]
[1756706414352,1.20568,107880.0,107870.0,0.37745629]
[1756706414958,1.20576,107880.0,107870.0,0.37745629]
[1756706415159,1.12088499,107890.0,107870.0,0.73825629]
[1756706415460,0.84508,107890.0,107880.0,0.27580499]
[1756706415658,0.84508,107890.0,107880.0,0.63660499]
[1756706417265,0.84508,107890.0,107880.0,0.64360499]
[1756706417759,0.84512,107890.0,107880.0,0.64360499]
[1756706418166,0.84508,107890.0,107880.0,0.64360499]
[1756706418463,0.84508,107890.0,107880.0,0.64860499]
[1756706426258,2.61346142,107910.0,107880.0,0.64860499]
[1756706426463,2.61346142,107910.0,107900.0,0.27580499]
[1756706426464,1.97685643,107910.0,107900.0,0.27580499]
[1756706426970,2.82205643,107910.0,107900.0,0.27580499]
[1756706427662,2.82205643,107910.0,107890.0,0.63660499]
[1756706428063,2.82205643,107910.0,107900.0,0.004]
[1756706428570,2.82205643,107910.0,107900.0,0.007]
[1756706428771,1.97685643,107910.0,107900.0,0.007]
[1756706429070,2.82189643,107910.0,107900.0,0.007]
[1756706429271,2.82189643,107910.0,107900.0,0.28280499]
[1756706429970,2.82189643,107910.0,107900.0,0.27880499]
[1756706430171,2.82189643,107910.0,107900.0,0.003]
[1756706430669,0.01877643,107910.0,107900.0,0.64360499]
[1756706430872,0.86361643,107910.0,107900.0,0.64360499]
[1756706431568,0.86361643,107910.0,107900.0,1.01360499]
[1756706431773,0.01877643,107910.0,107900.0,1.01360499]
[1756706432575,0.01877643,107910.0,107900.0,0.64360499]
[1756706432972,0.01877643,107910.0,107900.0,0.3678]
[1756706433973,0.01877643,107910.0,107900.0,0.37243]
[1756706434471,0.01877643,107910.0,107900.0,0.64823499]
[1756706435460,0.01877643,107910.0,107900.0,0.37243]
[1756706435668,0.01877643,107910.0,107900.0,0.64823499]
[1756706436472,0.01877643,107910.0,107900.0,0.71428461]
[1756706437372,0.01877643,107910.0,107900.0,0.64823499]
[1756706441276,0.01877643,107910.0,107900.0,1.07090689]
[1756706442176,0.01877643,107910.0,107900.0,1.13695651]
[1756706443374,0.01877643,107910.0,107900.0,1.98355651]
[1756706443776,0.01877643,107910.0,107900.0,1.97355651]
[1756706444877,0.01877643,107910.0,107900.0,1.65355651]
[1756706445081,0.01877643,107910.0,107900.0,1.98355651]
[1756706446179,0.01877643,107910.0,107900.0,2.23355651]
[1756706446379,0.01877643,107910.0,107900.0,1.38695651]
[1756706446581,0.01877643,107910.0,107900.0,1.29428461]
[1756706447980,0.01877643,107910.0,107900.0,1.38695661]
[1756706448381,0.01877643,107910.0,107900.0,1.11115162]
[1756706448582,0.01877643,107910.0,107900.0,1.38695661]
[1756706449478,0.63660499,107930.0,107900.0,1.13695661]
[1756706449683,0.3608,107940.0,107920.0,0.27580499]
[1756706449875,1.28868,107940.0,107910.0,1.54925461]
[1756706450076,1.56448499,107940.0,107920.0,0.24580499]
[1756706450383,1.20864,107940.0,107920.0,0.32580499]
[1756706450583,1.20864,107940.0,107920.0,0.55580499]
[1756706450980,1.20864,107940.0,107920.0,0.58580499]
[1756706451184,0.848,107940.0,107930.0,0.27580499]
[1756706451384,0.848,107940.0,107930.0,0.35580499]
[1756706453083,0.848,107940.0,107930.0,0.08]
[1756706453889,0.848,107940.0,107930.0,0.08930759]
[1756706455984,0.848,107940.0,107930.0,0.16355568]
[1756706456793,0.848,107940.0,107930.0,0.43936067]
[1756706460392,0.848,107940.0,107930.0,0.44399067]
[1756706462100,2.61365281,107950.0,107930.0,0.44399067]
[1756706462288,0.84704,107940.0,107930.0,0.44399067]
[1756706463593,0.84704,107940.0,107930.0,1.08479067]
[1756706463794,2.33784782,107950.0,107930.0,1.33479067]
[1756706463994,3.24472782,107950.0,107940.0,0.27580499]
[1756706464197,2.88392782,107950.0,107940.0,0.08]
[1756706464701,3.24472782,107950.0,107940.0,0.08]
[1756706465001,3.52053281,107950.0,107930.0,0.36899067]
[1756706465299,3.52053281,107950.0,107930.0,0.72679067]
[1756706465501,3.52053281,107950.0,107940.0,0.002]
[1756706466200,3.52053281,107950.0,107940.0,0.001]
[1756706467701,3.52053281,107950.0,107930.0,0.72479067]
[1756706468000,3.52053281,107950.0,107930.0,0.72579067]
[1756706468205,3.15973281,107950.0,107930.0,0.72579067]
[1756706468392,3.52053281,107950.0,107930.0,0.72579067]
[1756706468704,3.52053281,107950.0,107930.0,0.72479067]
[1756706468899,3.15973281,107950.0,107930.0,0.72479067]
[1756706469299,3.15973281,107950.0,107930.0,0.72579067]
[1756706469500,1.56217281,107950.0,107930.0,0.72579067]
[1756706469800,1.28636782,107950.0,107930.0,0.72579067]
[1756706470003,1.56217281,107950.0,107930.0,0.72579067]
[1756706471005,0.84708,107940.0,107930.0,0.72579067]
[1756706471609,0.84708,107940.0,107930.0,0.72679067]
[1756706472204,0.37948782,107950.0,107930.0,0.72679067]
[1756706472399,1.25660782,107950.0,107930.0,0.72579067]
[1756706472705,1.25660782,107950.0,107940.0,0.27580499]
[1756706472902,1.22660782,107950.0,107940.0,0.27580499]
[1756706473103,0.86580782,107950.0,107940.0,0.27580499]
[1756706473306,0.01868782,107950.0,107940.0,0.27580499]
[1756706473505,0.86600782,107950.0,107940.0,0.27580499]
[1756706473707,0.86596782,107950.0,107940.0,0.27580499]
[1756706474301,0.86596782,107950.0,107940.0,0.28043499]
[1756706475408,0.86596782,107950.0,107940.0,0.00463]
[1756706476009,0.86596782,107950.0,107940.0,0.00563]
[1756706476210,0.86596782,107950.0,107940.0,0.00663]
[1756706481916,0.01868782,107950.0,107940.0,0.28243499]
[1756706482116,0.86548782,107950.0,107940.0,0.28243499]
[1756706483015,0.86548782,107950.0,107940.0,0.64323499]
[1756706483217,0.01868782,107950.0,107940.0,0.64323499]
[1756706483917,0.01868782,107950.0,107940.0,0.89323499]
[1756706484119,0.01868782,107950.0,107940.0,1.33928461]
[1756706484314,2.31852,107980.0,107940.0,2.5538467]
[1756706484517,0.67744,107970.0,107960.0,0.27580499]
[1756706484820,0.67744,107970.0,107960.0,0.29683539]
[1756706489419,0.95324499,107970.0,107960.0,0.0210304]
[1756706489618,1.33283213,107970.0,107940.0,0.42684962]
[1756706489915,0.27580499,107960.0,107940.0,0.96755461]
[1756706490624,1.33283213,107970.0,107940.0,0.96755461]
[1756706490825,1.33283213,107970.0,107940.0,0.97218461]
[1756706491026,1.33283213,107970.0,107940.0,0.97418461]
[1756706491423,1.33283213,107970.0,107940.0,0.97718461]
[1756706491928,1.33283213,107970.0,107950.0,0.27580499]
[1756706494229,1.33283213,107970.0,107950.0,0.27680499]
[1756706494629,1.33283213,107970.0,107950.0,0.27780499]
[1756706496429,1.33283213,107970.0,107950.0,0.35780499]
[1756706498229,1.33283213,107970.0,107950.0,0.37853695]
[1756706500535,0.27580499,107960.0,107950.0,0.10273196]
[1756706501834,0.27580499,107960.0,107950.0,0.10073196]
[1756706502034,0.27580499,107960.0,107950.0,0.10273196]
[1756706502832,1.33283213,107970.0,107950.0,0.10273196]
[1756706504243,1.33283213,107970.0,107950.0,0.02273196]
[1756706504443,0.27580499,107960.0,107950.0,0.02273196]
[1756706504641,0.37958714,107970.0,107950.0,0.29853695]
[1756706504842,0.37958714,107970.0,107960.0,0.27580499]
[1756706505030,1.22590714,107970.0,107960.0,0.34580499]
[1756706505837,1.50171213,107970.0,107950.0,0.36921657]
[1756706506047,1.50171213,107970.0,107950.0,0.09241158]
[1756706506439,1.50171213,107970.0,107950.0,0.09141158]
[1756706506943,1.50171213,107970.0,107950.0,0.02536196]
[1756706508138,1.50171213,107970.0,107950.0,0.40536196]
[1756706508340,1.50171213,107970.0,107950.0,0.40636196]
[1756706509150,1.50171213,107970.0,107950.0,0.68316695]
[1756706509341,1.84171213,107970.0,107950.0,0.74921657]
[1756706510353,1.84171213,107970.0,107950.0,0.68316695]
[1756706511154,1.84171213,107970.0,107950.0,0.74921657]
[1756706513543,0.71958714,107970.0,107950.0,0.44921657]
[1756706513743,0.37958714,107970.0,107960.0,0.27580499]
[1756706514050,1.22570714,107970.0,107960.0,0.34580499]
[1756706514549,0.86490714,107970.0,107960.0,0.34580499]
[1756706518147,0.86490714,107970.0,107960.0,0.07]
[1756706518348,1.14071213,107970.0,107960.0,0.35]
[1756706519650,1.87151213,107970.0,107950.0,0.09141158]
[1756706520351,0.63660499,107960.0,107950.0,0.09141158]
[1756706521550,0.63660499,107960.0,107950.0,0.09241158]
[1756706522440,0.63660499,107960.0,107950.0,0.09341158]
[1756706523449,0.63660499,107960.0,107950.0,0.09241158]
[1756706523655,0.63660499,107960.0,107950.0,0.09341158]
[1756706524350,0.98660499,107960.0,107950.0,0.09341158]
[1756706524656,1.2575934,107960.0,107950.0,0.02736196]
[1756706524860,1.2575934,107960.0,107950.0,0.00663]
[1756706525251,0.98178841,107960.0,107950.0,0.00663]
[1756706525454,1.23660499,107960.0,107950.0,0.00663]
[1756706526253,1.23660499,107960.0,107950.0,0.00563]
[1756706527150,1.23760499,107960.0,107950.0,0.00563]
[1756706527550,1.23760499,107960.0,107950.0,0.00463]
[1756706528156,1.25857848,107960.0,107950.0,0.00463]
[1756706528758,1.25957848,107960.0,107950.0,0.00463]
[1756706529960,0.98377349,107960.0,107950.0,0.00463]
[1756706530160,1.25957848,107960.0,107950.0,0.00463]
[1756706531361,1.25957848,107960.0,107930.0,0.10379311]
[1756706531662,0.63660499,107940.0,107930.0,0.10379311]
[1756706531860,0.95660499,107940.0,107930.0,0.10379311]
[1756706533162,0.95660499,107940.0,107930.0,0.10479311]
[1756706533862,0.95660499,107940.0,107930.0,0.10579311]
[1756706534658,0.95660499,107940.0,107930.0,0.10479311]
[1756706535460,0.95660499,107940.0,107930.0,0.08355568]
[1756706535655,1.84320998,107940.0,107910.0,0.38143663]
[1756706535861,1.48388499,107930.0,107910.0,0.09063663]
[1756706536162,0.63660499,107920.0,107910.0,0.02063663]
[1756706536560,1.00660499,107920.0,107910.0,0.02063663]
[1756706536956,0.63660499,107920.0,107910.0,0.02063663]
[1756706537156,0.3808,107920.0,107910.0,0.02063663]
[1756706537358,0.3608,107920.0,107910.0,0.03182522]
[1756706537558,0.7108,107920.0,107910.0,0.03182522]
[1756706537764,0.3808,107920.0,107910.0,0.03182522]
[1756706538065,0.3608,107920.0,107910.0,0.03182522]
[1756706539151,0.3608,107920.0,107910.0,0.56063021]
[1756706539356,1.20804,107920.0,107910.0,0.56063021]
[1756706540563,1.20804,107920.0,107910.0,0.28482522]
[1756706540762,1.20804,107920.0,107910.0,0.56063021]
[1756706541359,1.20812,107920.0,107910.0,0.56063021]
[1756706541660,0.84824,107920.0,107910.0,0.92143021]
[1756706542156,0.3608,107930.0,107910.0,0.92143021]
[1756706542359,1.20892,107930.0,107920.0,0.27580499]
[1756706543962,1.20892,107930.0,107920.0,0.27780499]
[1756706544463,1.20872,107930.0,107920.0,0.27780499]
[1756706545264,0.3608,107930.0,107920.0,0.27880499]
[1756706545567,0.84792,107930.0,107920.0,0.27880499]
[1756706545760,0.84792,107930.0,107920.0,0.003]
[1756706549065,0.84792,107930.0,107920.0,0.27880499]
[1756706549369,0.84792,107930.0,107920.0,0.003]
[1756706549571,0.84792,107930.0,107920.0,0.27880499]
[1756706550768,0.84792,107930.0,107920.0,0.003]
[1756706550959,0.84792,107930.0,107920.0,0.27880499]
[1756706551160,0.84792,107930.0,107920.0,0.003]
[1756706553170,1.20872,107930.0,107920.0,0.003]
[1756706553376,1.82452499,107930.0,107920.0,0.003]
[1756706554465,2.07452499,107930.0,107920.0,0.003]
[1756706559579,1.71372499,107930.0,107920.0,0.003]
[1756706559876,2.07452499,107930.0,107920.0,0.003]
[1756706565086,2.09550176,107930.0,107920.0,0.003]
[1756706569991,2.09406176,107930.0,107920.0,0.003]
[1756706571585,1.24758176,107930.0,107920.0,0.003]
[1756706571786,2.09426176,107930.0,107920.0,0.003]
[1756706576590,2.10371823,107930.0,107920.0,0.003]
[1756706577395,1.85371823,107930.0,107920.0,0.003]
[1756706577594,2.37952322,107930.0,107920.0,0.003]
[1756706577992,2.10371823,107930.0,107920.0,0.003]
[1756706578192,2.37952322,107930.0,107890.0,0.06604962]
[1756706578392,0.27580499,107900.0,107880.0,0.50988904]
[1756706578593,0.84684,107890.0,107880.0,0.75684962]
[1756706579194,0.84684,107890.0,107880.0,0.69994925]
[1756706579395,0.84684,107890.0,107880.0,0.76589906]
[1756706579591,0.63660499,107900.0,107890.0,0.004]
[1756706579808,1.48332499,107900.0,107890.0,0.004]
[1756706579998,1.48332499,107900.0,107890.0,0.254]
[1756706581098,1.20744,107900.0,107890.0,0.259]
[1756706581307,1.48324499,107900.0,107890.0,0.259]
[1756706581798,1.48324499,107900.0,107890.0,0.255]
[1756706582004,1.12280499,107900.0,107890.0,0.255]
[1756706582204,1.48360499,107900.0,107890.0,0.255]
[1756706582707,1.48360499,107900.0,107890.0,0.259]
[1756706584002,1.48360499,107900.0,107890.0,0.009]
[1756706584303,1.73360499,107900.0,107890.0,0.009]
[1756706584509,0.88660499,107900.0,107890.0,0.009]
[1756706584708,1.73372499,107900.0,107890.0,0.009]
[1756706585601,1.7546713,107900.0,107890.0,0.009]
[1756706585909,2.1346713,107900.0,107890.0,0.009]
[1756706586504,2.14400312,107900.0,107890.0,0.009]
[1756706587907,2.14428312,107900.0,107890.0,0.009]
[1756706589111,2.42008811,107900.0,107870.0,0.02966366]
[1756706589300,1.27320998,107880.0,107870.0,0.00933645]
[1756706589502,2.12028998,107880.0,107850.0,0.3608]
[1756706589709,0.63660499,107870.0,107850.0,0.6108]
[1756706589911,0.84708,107860.0,107850.0,0.6108]
[1756706590108,0.84708,107860.0,107850.0,0.3608]
[1756706590408,0.84708,107860.0,107850.0,0.07593491]
[1756706590409,1.12288499,107860.0,107850.0,0.07593491]
[1756706590612,1.12288499,107860.0,107840.0,0.66671652]
[1756706590802,1.12288499,107860.0,107840.0,1.01671652]
[1756706591002,1.12288499,107860.0,107850.0,0.008]
[1756706591198,0.84708,107860.0,107850.0,0.008]
[1756706591913,0.84708,107860.0,107840.0,0.66671652]
[1756706592113,0.84708,107860.0,107850.0,0.008]
[1756706592812,0.84708,107860.0,107850.0,0.014]
[1756706593615,0.84708,107860.0,107850.0,0.008]
[1756706593911,0.84708,107860.0,107850.0,0.009]
[1756706594508,0.84708,107860.0,107850.0,0.001]
[1756706594709,0.84708,107860.0,107850.0,0.07476178]
[1756706594907,0.84708,107860.0,107850.0,0.001]
[1756706595309,0.84708,107860.0,107850.0,0.003]
[1756706597013,0.65536346,107870.0,107850.0,0.003]
[1756706597215,0.84704,107860.0,107850.0,0.003]
[1756706597914,0.84704,107860.0,107850.0,0.27880499]
[1756706598114,0.84704,107860.0,107850.0,0.85880499]
[1756706598115,0.847,107860.0,107850.0,0.85880499]
[1756706598315,0.84692,107860.0,107850.0,1.22160499]
[1756706598814,0.37955847,107870.0,107850.0,1.22160499]
[1756706599014,0.01875847,107870.0,107860.0,0.27580499]
[1756706599214,0.86563847,107870.0,107860.0,0.27580499]
[1756706599515,0.63660499,107880.0,107860.0,0.27580499]
[1756706599713,0.84684,107870.0,107860.0,0.63660499]
[1756706600507,0.84672,107870.0,107860.0,0.63660499]
[1756706600909,0.84672,107870.0,107860.0,0.3608]
[1756706601115,0.84672,107870.0,107860.0,0.63660499]
[1756706601413,0.84672,107870.0,107860.0,0.63760499]
[1756706602516,0.84672,107870.0,107860.0,0.63960499]
[1756706602712,0.37926446,107890.0,107860.0,1.26000584]
[1756706602912,0.8466,107880.0,107870.0,0.27580499]
[1756706603314,0.8466,107880.0,107860.0,0.38420085]
[1756706603515,0.8466,107880.0,107870.0,0.27580499]
[1756706603917,0.8466,107880.0,107860.0,0.66000584]
[1756706604123,0.8466,107880.0,107860.0,1.03000584]
[1756706604419,0.8466,107880.0,107860.0,1.02800584]
[1756706604720,0.8466,107880.0,107860.0,1.03000584]
[1756706604920,1.48320499,107880.0,107860.0,0.20340085]
[1756706605117,0.27580499,107870.0,107860.0,0.02340085]
[1756706605718,0.63660499,107870.0,107860.0,0.02340085]
[1756706606226,0.63660499,107870.0,107860.0,0.02240085]
[1756706606622,0.63660499,107870.0,107860.0,0.002]
[1756706607013,0.90527206,107870.0,107860.0,0.002]
[1756706608120,0.90527206,107870.0,107860.0,0.003]
[1756706608329,0.92620353,107870.0,107860.0,0.003]
[1756706608528,0.92620353,107870.0,107860.0,0.001]
[1756706608723,0.92620353,107870.0,107860.0,0.003]
[1756706611618,0.92620353,107870.0,107860.0,0.00763]
[1756706612630,0.92620353,107870.0,107860.0,0.00563]
[1756706612930,0.92620353,107870.0,107860.0,0.00663]
[1756706614132,1.24871854,107870.0,107860.0,0.00563]
[1756706614335,1.52444353,107870.0,107860.0,0.00563]
[1756706617730,2.05024852,107870.0,107860.0,0.00563]
[1756706617938,4.38936852,107870.0,107830.0,0.02078843]
[1756706618129,0.63660499,107840.0,107830.0,0.07078843]
[1756706618326,1.48492499,107840.0,107830.0,0.02078843]
[1756706619429,1.48492499,107840.0,107830.0,0.003]
[1756706619936,0.63660499,107840.0,107830.0,0.003]
[1756706620236,1.48476499,107840.0,107830.0,0.003]
[1756706621128,1.50570782,107840.0,107830.0,0.003]
[1756706621325,0.38174283,107840.0,107830.0,0.007]
[1756706621528,1.50826782,107840.0,107830.0,0.007]
[1756706621729,1.50830782,107840.0,107830.0,0.007]
[1756706621932,1.50862782,107840.0,107830.0,0.003]
[1756706622133,1.50862782,107840.0,107830.0,0.005]
[1756706622738,1.50862782,107840.0,107830.0,0.002]
[1756706622937,1.50862782,107840.0,107830.0,0.004]
[1756706623634,0.65754782,107840.0,107830.0,0.004]
[1756706623834,1.50842782,107840.0,107830.0,0.004]
[1756706624741,2.03423281,107840.0,107830.0,0.004]
[1756706624939,2.40423281,107840.0,107830.0,0.004]
[1756706625143,2.40423281,107840.0,107800.0,0.02082624]
[1756706625341,0.63660499,107810.0,107800.0,0.02082624]
[1756706625536,1.48764499,107810.0,107800.0,0.02082624]
[1756706625736,1.48764499,107810.0,107790.0,0.3608]
[1756706625937,1.48764499,107810.0,107790.0,0.7008]
[1756706626136,0.63660499,107810.0,107790.0,0.7008]
[1756706626337,0.85096,107800.0,107790.0,0.7008]
[1756706626536,1.12676499,107800.0,107790.0,0.34]
[1756706626743,1.12676499,107800.0,107780.0,0.38169929]
[1756706626940,1.12676499,107800.0,107780.0,0.73169929]
[1756706627644,0.91240998,107790.0,107780.0,0.02089929]
[1756706627838,0.63660499,107790.0,107780.0,0.02089929]
[1756706628038,0.63660499,107790.0,107780.0,0.02789929]
[1756706628234,1.18090308,107790.0,107780.0,0.007]
[1756706628640,2.03358308,107790.0,107780.0,0.007]
[1756706628840,1.50777809,107790.0,107780.0,0.007]
[1756706629042,1.78358308,107790.0,107780.0,0.007]
[1756706629441,0.93090308,107790.0,107780.0,0.007]
[1756706629642,1.78354308,107790.0,107780.0,0.007]
[1756706629945,1.57726951,107790.0,107780.0,0.008]
[1756706630341,1.57726951,107790.0,107780.0,0.001]
[1756706630540,1.57726951,107790.0,107780.0,0.005]
[1756706630742,1.57722951,107790.0,107780.0,0.005]
[1756706630938,0.72470951,107790.0,107780.0,0.005]
[1756706631244,1.57714951,107790.0,107780.0,0.005]
[1756706631634,0.72470951,107790.0,107780.0,0.005]
[1756706631836,1.57726951,107790.0,107780.0,0.003]
[1756706632140,3.78718951,107790.0,107740.0,0.3608]
[1756706632333,0.70621641,107760.0,107740.0,0.7408]
[1756706632643,0.85344,107750.0,107740.0,0.7408]
[1756706633645,0.85344,107750.0,107740.0,0.7418]
[1756706633845,0.85344,107750.0,107740.0,0.7509575]
[1756706634244,0.85344,107750.0,107740.0,0.7549575]
[1756706634446,1.55965641,107750.0,107740.0,0.005]
[1756706634938,1.21424,107750.0,107740.0,0.005]
[1756706635145,1.55961641,107750.0,107740.0,0.004]
[1756706635545,1.19885641,107750.0,107740.0,0.004]
[1756706636945,1.19885641,107750.0,107740.0,0.003]
[1756706637245,0.85344,107750.0,107740.0,0.003]
[1756706637445,1.19885641,107750.0,107740.0,0.003]
[1756706637647,1.19885641,107750.0,107740.0,0.002]
[1756706638847,0.85324,107750.0,107740.0,0.002]
[1756706640046,0.85336,107750.0,107740.0,0.002]
[1756706640949,0.85332,107750.0,107740.0,0.002]
[1756706641250,0.70621641,107760.0,107740.0,0.002]
[1756706641451,0.85332,107750.0,107740.0,0.002]
[1756706644148,0.72471741,107770.0,107740.0,0.95821641]
[1756706644354,0.8536,107760.0,107740.0,0.70821641]
[1756706644947,0.379301,107770.0,107750.0,0.70621641]
[1756706645149,0.871901,107770.0,107750.0,1.04621641]
[1756706645452,0.018501,107770.0,107750.0,1.38901581]
[1756706645651,0.018501,107770.0,107760.0,0.70621641]
[1756706645844,0.018501,107770.0,107760.0,1.04621641]
[1756706646042,2.3392131,107790.0,107760.0,1.13900741]
[1756706646246,2.3392131,107790.0,107770.0,0.3608]
[1756706646446,0.8724131,107790.0,107770.0,0.70621641]
[1756706647253,0.8724131,107790.0,107770.0,0.95621641]
[1756706647655,0.8724131,107790.0,107770.0,1.33621641]
[1756706647849,0.8724131,107790.0,107770.0,0.95621641]
[1756706647850,0.8764131,107790.0,107770.0,0.95621641]
[1756706648052,0.8764131,107790.0,107770.0,1.32621641]
[1756706648251,0.8764131,107790.0,107770.0,0.95621641]
[1756706649344,0.8764131,107790.0,107770.0,1.31621641]
[1756706649553,0.8774131,107790.0,107770.0,1.04899621]
[1756706649754,0.8774131,107790.0,107770.0,1.37899621]
[1756706649957,0.0234931,107790.0,107770.0,1.37899621]
[1756706650256,0.8768931,107790.0,107770.0,1.42899621]
[1756706650452,0.8768931,107790.0,107770.0,1.41899621]
[1756706650757,0.8768931,107790.0,107780.0,0.3608]
[1756706650958,0.0234931,107790.0,107780.0,1.13899021]
[1756706651253,0.0234931,107790.0,107780.0,1.38899021]
[1756706651759,0.0234931,107790.0,107780.0,0.6108]
[1756706652052,0.0234931,107790.0,107780.0,0.62013534]
[1756706652257,0.0244931,107790.0,107780.0,0.62013534]
[1756706653659,0.0254931,107790.0,107780.0,0.62013534]
[1756706654057,0.0254931,107790.0,107780.0,0.37013534]
[1756706654253,0.37090951,107790.0,107770.0,0.3608]
[1756706654456,0.85328,107780.0,107770.0,0.3608]
[1756706654956,1.44869641,107780.0,107770.0,0.3608]
[1756706656148,1.80949641,107780.0,107750.0,0.38155494]
[1756706656349,1.55949641,107780.0,107750.0,0.44155494]
[1756706656754,1.56049641,107780.0,107750.0,0.44155494]
[1756706657251,1.56049641,107780.0,107750.0,0.45080042]
[1756706657452,0.34541641,107770.0,107750.0,0.45080042]
[1756706658765,0.34541641,107760.0,107750.0,0.39080042]
[1756706658964,0.70721641,107770.0,107750.0,0.39180042]
[1756706659866,0.3618,107770.0,107750.0,0.39180042]
[1756706660066,0.781,107770.0,107750.0,0.39180042]
[1756706660257,0.85432,107770.0,107750.0,0.39180042]
[1756706660459,0.85432,107770.0,107750.0,0.39080042]
[1756706660666,0.85432,107770.0,107750.0,0.39180042]
[1756706660854,0.85436,107770.0,107750.0,1.09721683]
[1756706661164,0.85436,107770.0,107750.0,0.73721683]
[1756706661562,0.85436,107770.0,107750.0,0.39180042]
[1756706661956,1.19977641,107770.0,107750.0,0.39180042]
[1756706662458,1.56057641,107770.0,107750.0,0.03100042]
[1756706662865,1.56053641,107770.0,107750.0,0.03100042]
[1756706663268,0.70721641,107770.0,107750.0,0.03100042]
[1756706663455,0.3618,107770.0,107750.0,0.39180042]
[1756706663661,1.21496,107770.0,107750.0,0.39180042]
[1756706664168,0.3618,107770.0,107750.0,0.39180042]
[1756706664367,1.2152,107770.0,107750.0,0.39180042]
[1756706664570,0.001,107770.0,107750.0,1.10721683]
[1756706664868,0.001,107770.0,107760.0,0.3608]
[1756706664869,0.85432,107770.0,107760.0,0.3608]
[1756706665059,0.001,107770.0,107760.0,0.3608]
[1756706666164,1.56045641,107780.0,107760.0,0.3608]
[1756706666364,0.003,107770.0,107760.0,0.3608]
[1756706667564,0.003,107770.0,107760.0,0.70621641]
[1756706668064,0.003,107770.0,107760.0,0.3608]
[1756706670966,0.003,107770.0,107750.0,0.39080042]
[1756706671170,0.003,107770.0,107750.0,0.86621683]
[1756706671472,0.003,107770.0,107760.0,0.3608]
[1756706671671,0.003,107770.0,107750.0,0.73621683]
[1756706671870,0.003,107770.0,107750.0,1.02621683]
[1756706672073,0.27934894,107770.0,107750.0,0.95714936]